Cogmind - Beta 9.6 @@@ ROGUE MODE // 2020.09.04 @ 09:18:20 Player: Alexbot Result: Self-destructed Performance ------------- Evolutions (7) 3500 Regions Visited (31) 6200 Robots Destroyed (292) 1460 Value Destroyed (11738) 11738 Prototype IDs (91) 1820 Alien Tech Used (2) 400 Bonus (5350) 5350 TOTAL SCORE: 30468 Bonus ------- High Alert Combat Kills 1332 Follower Combat Kills 348 Aligned with FarCom 300 Met Data Miner 300 Destroyed Z-Imprinter 1000 Met Zhirov 300 Met Warlord at Base 500 MAIN.C Attacked Warlord 500 Warlord Defense Kill 1002 Friendly Fire -232 Cogmind --------- Core Integrity 102/1300 Matter 300/300 Energy 109/1125 System Corruption 20% Temperature Cool (0) Movement Treading (160) Location -3/Research Parts ------- > --- POWER (1) -------- Antimatter Reactor > --- PROPULSION (4) --- Medium Treads > --- UTILITY (14) ----- Advanced Energy Well Experimental Core Analyzer Improved Hacking Suite > --- WEAPON (2) ------- (None) > --- INVENTORY (4) ---- Zionite Metafield Generator Experimental Terrain Scanner Peak State ------------ > --- POWER ------------ Mini Fusion Reactor > --- PROPULSION ------- Linear Gravjet Combat Gravmag System Combat Gravmag System Cooled Antigrav System > --- UTILITY ---------- Large Storage Unit Large Storage Unit Large Storage Unit Advanced Energy Well Improved Matter Compressor Advanced Visual Processing Unit Experimental Terrain Scan Processor Experimental Core Analyzer Layered Heavy Armor Plating Improved Hacking Suite System Mapper System Shield System Shield > --- WEAPON ----------- Vortex Catalyst Activator > --- INVENTORY -------- Armored Heavy Treads Combat Gravmag System Zionite Metafield Generator Makeshift Sensor Array Experimental Terrain Scanner Advanced Transmission Jammer Experimental Weapon Shielding Damper Plating Transdimensional Reconstructor Compact HERF Cannon Heavy Neutron Cannon Vortex Cannon Vortex Cannon Compact Tesla Bomb Launcher Gamma Bomb Array Molecular Deconstructor [Rating: 137] Favorites ----------- Power Micro Fission Core Engine Ion Engine Power Core Micro Fission Core Reactor Light Antimatter Reactor Propulsion Combat Gravmag System Treads Light Treads Leg Advanced Myomer Leg Hover Unit Combat Gravmag System Flight Unit Improved Flight Unit Utility Large Storage Unit Device Makeshift Sensor Array Storage Large Storage Unit Processor Enhanced Optical Array Hackware Hacking Suite Protection Improved Propulsion Shielding Weapon Ripper Energy Gun Advanced Beam Rifle Energy Cannon Heavy Neutron Cannon Ballistic Gun Light Assault Rifle Ballistic Cannon Bore Cannon Launcher Heavy Shock Bomb Launcher Special Weapon Remote Datajack Slashing Weapon Ripper Piercing Weapon Spear Build | -11 -10 -10 -10 -9 -8 -7 -7 -7 -7 -6 -6 -6 -6 -6 -6 -5 -5 -5 -5 -5 -5 -5 -4 -4 -4 -4 -4 -4 -4 -3 -3 ------- Run | Scr Mat Min Exi Min Mat Fac Low Low Dat Pro Fac Low Low Zio Dee Pro Fac Was Fac Upp Upp Zhi Pro Fac Was Fac Upp Upp War Pro Res Slots Evolved 14 | . . . . . 4 2 . . . . 2 . . . . . 2 . . . . . . 2 . . . . . . 2 Power . | . . . . . . . . . . . . . . . . . . . . . . . . . . . . . . . . Propulsion 2 | . . . . . . 2 . . . . . . . . . . . . . . . . . . . . . . . . . Utility 12 | . . . . . 4 . . . . . 2 . . . . . 2 . . . . . . 2 . . . . . . 2 Weapon . | . . . . . . . . . . . . . . . . . . . . . . . . . . . . . . . . Parts Attached 451 | . 2 6 . 5 23 20 2 . 1 4 15 . . 42 17 15 . 9 49 9 8 9 11 16 . 54 11 5 13 13 92 Power 20 | . . 1 . . 1 1 . . . . 1 . . 3 1 1 . . 5 . . 1 . 1 . . 1 . . . 3 Engine 6 | . . 1 . . 1 1 . . . . 1 . . 2 . . . . . . . . . . . . . . . . . Core 6 | . . . . . . . . . . . . . . 1 . . . . 4 . . . . 1 . . . . . . . Reactor 8 | . . . . . . . . . . . . . . . 1 1 . . 1 . . 1 . . . . 1 . . . 3 Propulsion 83 | . . 2 . . 6 10 . . . . 2 . . 18 4 2 . 2 5 . 1 3 . 4 . 7 1 1 1 1 13 Treads 15 | . . 2 . . 2 . . . . . . . . . . . . 1 . . . . . . . 4 1 1 . 1 3 Leg 23 | . . . . . 4 1 . . . . . . . 14 . . . . . . . 3 . 1 . . . . . . . Wheel . | . . . . . . . . . . . . . . . . . . . . . . . . . . . . . . . . Hover 44 | . . . . . . 8 . . . . 2 . . 4 4 2 . 1 5 . 1 . . 3 . 3 . . 1 . 10 Flight 1 | . . . . . . 1 . . . . . . . . . . . . . . . . . . . . . . . . . Utility 204 | . 1 1 . 1 6 6 2 . . . 7 . . 9 8 9 . 6 16 5 4 4 6 9 . 35 7 3 4 9 46 Device 103 | . . 1 . . 1 2 1 . . . 5 . . 3 3 4 . 3 7 5 2 1 2 5 . 18 4 2 2 6 26 Storage 30 | . 1 . . 1 1 3 . . . . . . . 2 . 1 . 1 6 . . 2 2 1 . 2 . . . 1 6 Processor 13 | . . . . . 1 1 . . . . . . . 1 2 1 . . 1 . . . . 1 . 3 . . 1 . 1 Hackware 8 | . . . . . 1 . . . . . 1 . . 1 1 . . . . . . . . . . 1 . . . . 3 Protection 50 | . . . . . 2 . 1 . . . 1 . . 2 2 3 . 2 2 . 2 1 2 2 . 11 3 1 1 2 10 Artifact . | . . . . . . . . . . . . . . . . . . . . . . . . . . . . . . . . Weapon 144 | . 1 2 . 4 10 3 . . 1 4 5 . . 12 4 3 . 1 23 4 3 1 5 2 . 12 2 1 8 3 30 Energy Gun 16 | . 1 2 . . 5 . . . . . . . . . . . . . . . . . . . . 3 . . 2 . 3 Energy Cannon 42 | . . . . . . . . . . . 2 . . . 1 1 . . 7 1 1 1 . . . 4 . . 3 1 20 Ballistic Gun 1 | . . . . . . . . . . . . . . . . . . . . . . . . . . . . . . . 1 Ballistic Cannon 17 | . . . . . . . . . . 2 . . . 4 . . . . 7 . . . . . . 1 1 1 1 . . Launcher 40 | . . . . 3 4 1 . . . 2 . . . 1 2 2 . . 7 2 2 . . . . 4 1 . 2 2 5 Special Weapon 11 | . . . . . . . . . 1 . 1 . . 2 1 . . 1 1 1 . . 2 . . . . . . . 1 Impact Weapon . | . . . . . . . . . . . . . . . . . . . . . . . . . . . . . . . . Slashing Weapon 16 | . . . . 1 1 2 . . . . 1 . . 5 . . . . 1 . . . 3 2 . . . . . . . Piercing Weapon 1 | . . . . . . . . . . . 1 . . . . . . . . . . . . . . . . . . . . Special Melee Weapon . | . . . . . . . . . . . . . . . . . . . . . . . . . . . . . . . . Unidentified Prototypes 39 | . . . . . 1 2 . . . . . . . 3 10 . . 1 5 1 . 5 . . . . . . 8 . 3 Parts Lost 87 | . 1 5 . . 4 2 . 1 1 1 2 . . 16 6 4 . . 2 . 4 . . . . 10 2 1 . 3 22 Power 10 | . . 1 . . 1 . . . . 1 . . . 1 1 . . . 1 . 1 . . . . 1 . . . 1 1 Propulsion 29 | . . 2 . . 2 1 . . . . . . . 7 3 1 . . 1 . 3 . . . . 2 1 1 . . 5 Utility 28 | . . . . . 1 . . . . . 1 . . 5 1 3 . . . . . . . . . 4 1 . . 2 10 Weapon 20 | . 1 2 . . . 1 . 1 1 . 1 . . 3 1 . . . . . . . . . . 3 . . . . 6 Highest Loss Streak 9 | . 1 5 . . 3 1 . 1 1 1 2 . . 8 6 4 . . 1 . 2 . . . . 6 2 1 . 3 9 Average Slot Usage (%) 89 | . 88 95 73 78 93 92 92 87 88 83 86 95 93 84 93 91 82 89 95 100 90 81 97 94 100 85 93 97 93 94 82 Engine 3 | . 14 12 14 14 7 7 7 7 7 3 5 6 6 2 2 . . . . . . . . . . . . . . . . Reactor 1 | . . . . . . . . . . . . . . . 3 5 5 5 1 . . 2 5 2 . . 4 5 5 4 3 Treads 5 | . . 16 28 28 14 . . . . . . . . . . . . . . . . . . . . 3 13 18 18 11 3 Leg 3 | . 28 10 . . 3 12 . . . . . . . 6 9 . . . . . . 6 16 3 . . . . . . . Hover 12 | . . . . . . 10 23 23 23 23 22 22 20 14 15 22 17 20 22 23 18 8 5 16 21 15 5 1 2 5 11 Device 6 | . . 3 14 1 8 3 . . . . 2 13 13 6 3 6 11 12 7 9 14 10 4 12 15 7 9 9 10 9 7 Storage 21 | . 17 24 14 26 23 21 23 23 23 23 20 20 20 21 22 14 11 13 23 23 23 26 34 22 21 21 21 21 21 24 15 Processor 8 | . . . . . 1 11 7 7 7 7 6 6 6 6 13 9 5 5 7 11 11 11 11 15 15 14 11 10 11 15 13 Hackware 7 | . . . . . 8 7 7 7 7 7 12 13 13 9 3 6 5 5 5 5 5 5 5 5 5 3 5 5 5 5 17 Protection 5 | . . . . . 6 . 6 7 7 7 6 . . 1 7 11 11 16 10 6 2 1 . 4 5 6 13 15 11 6 2 Energy Gun 1 | . 13 21 2 . 6 1 . . . . . . . . . . . . . . . . . . . . . . . . . Energy Cannon 1 | . . . . . . . . . . . . . . . 3 5 5 . . . . . . . . 1 5 5 4 4 3 Ballistic Cannon 1 | . . . . . . . . . . 2 . . . 4 . . . . 2 . . . . . . . 1 4 1 5 . Slashing Weapon 4 | . . . . 7 9 12 15 10 6 . . 6 6 5 1 . . . 2 5 5 5 8 6 10 4 . . . . . Naked Turns . | . . . . . . . . . . . . . . . . . . . . . . . . . . . . . . . . Heaviest Build 134 | 10 42 45 44 57 84 80 66 66 66 71 77 71 71 91 72 66 66 72 94 94 90 95 134 134 89 131 106 109 113 104 123 Greatest Support 103 | 20 20 40 40 40 40 77 66 66 66 66 94 94 72 80 103 103 81 103 103 91 91 90 90 92 92 92 74 102 102 88 95 Greatest Overweight (x) 4 | . 2 2 1 1 4 2 . . . 1 1 . . 2 3 1 . . 1 1 1 3 1 1 . 1 2 1 1 1 1 Average Overweight (x) . | . . 1 . . 1 . . . . . . . . . . . . . . . . 1 1 . . . 1 1 . . . Largest Inventory Capacity 28 | . 14 14 12 18 24 24 22 22 22 22 22 22 22 22 22 16 16 16 28 28 28 28 28 28 28 28 22 22 22 22 22 Average Capacity 21 | . 8 13 12 17 21 21 22 22 22 22 22 22 22 22 18 16 16 16 24 28 28 28 28 27 28 25 22 22 22 22 19 Most Carried 28 | . 6 7 12 18 24 24 20 22 19 22 22 22 22 22 22 16 15 16 28 28 28 28 28 28 26 28 22 21 22 22 22 Average Carried 20 | . 5 5 9 15 19 21 17 20 18 19 21 21 21 21 17 14 15 15 23 27 26 27 26 24 25 23 19 18 21 22 17 Final Capacity 28 | 6 14 12 12 18 24 22 22 22 22 22 22 22 22 22 16 16 16 16 28 28 28 28 28 28 28 22 22 22 22 22 4 Final Carried 28 | 6 5 6 12 18 24 18 20 19 18 22 19 22 22 22 16 15 15 16 27 28 26 28 28 25 26 21 19 19 22 22 2 Class Distribution -------------------- 31% | Hauler-Mutant 21% | Scavenger-Mutant 10% | Scavenger-Scout 7% | Trapper-Mutant 7% | Hacker-Mutant 6% | Hauler-Assassin 5% | Mutant 4% | Scavenger-Skirmisher Dominant Class ---------------- Mutant | -10/Materials Mutant | -10/Mines Mutant | -10/Exiles Trapper-Mutant | -9/Mines Hauler-Mutant | -8/Materials Hauler-Mutant | -7/Factory Hauler-Mutant | -7/Lower Caves Hauler-Mutant | -7/Lower Caves Hauler-Mutant | -7/Data Miner Hauler-Mutant | -6/Proximity Caves Hauler-Mutant | -6/Factory Hauler-Mutant | -6/Lower Caves Hauler-Mutant | -6/Lower Caves Hauler-Mutant | -6/Zion Scavenger-Mutant | -6/Deep Caves Scavenger-Scout | -5/Proximity Caves Scavenger-Mutant | -5/Factory Scavenger-Mutant | -5/Waste Scavenger-Mutant | -5/Factory Scavenger-Scout | -5/Upper Caves Scavenger-Scout | -5/Upper Caves Hauler-Assassin | -5/Zhirov Hauler-Assassin | -4/Proximity Caves Scavenger-Scout | -4/Factory Scavenger-Scout | -4/Waste Scavenger-Mutant | -4/Factory Scavenger-Mutant | -4/Upper Caves Scavenger-Mutant | -4/Upper Caves Scavenger-Skirmisher | -4/Warlord Scavenger-Mutant | -3/Proximity Caves Hacker-Mutant | -3/Research Resources | -11 -10 -10 -10 -9 -8 -7 -7 -7 -7 -6 -6 -6 -6 -6 -6 -5 -5 -5 -5 -5 -5 -5 -4 -4 -4 -4 -4 -4 -4 -3 -3 ----------- Run | Scr Mat Min Exi Min Mat Fac Low Low Dat Pro Fac Low Low Zio Dee Pro Fac Was Fac Upp Upp Zhi Pro Fac Was Fac Upp Upp War Pro Res Matter Collected 9006 | 200 21 62 . 127 337 291 50 . . 187 198 . . 704 215 337 . 90 1347 145 436 425 148 113 . 1104 269 223 661 186 1130 Remotely . | . . . . . . . . . . . . . . . . . . . . . . . . . . . . . . . . Salvage Created 11874 | . 90 43 . 227 1176 630 . . . 497 435 38 . 632 215 460 . . 2079 287 179 425 83 113 . 1250 123 163 324 359 2046 Parts 575 | . 5 . . 19 68 38 . . . 14 38 4 . 46 21 12 . . 72 9 8 3 8 7 . 60 4 2 24 14 99 Haulers Intercepted 8 | . . . . . 2 1 . . . . . . . . . . . . 4 1 . . . . . . . . . . . Recyclers Shooed 7 | . . . . 1 . . . . . . . . . . . . . . 3 . . . . . . 3 . . . . . Parts Field Recycled . | . . . . . . . . . . . . . . . . . . . . . . . . . . . . . . . . Retrieved Matter . | . . . . . . . . . . . . . . . . . . . . . . . . . . . . . . . . Parts Self-Destructed 89 | . . . . . . . . . . 3 . 4 . 3 . . . . . 5 5 2 3 . . . 4 . 54 6 . Prevented 33 | . . . . . . . . . . 10 . . . . . 11 . . . 1 3 . . . . . 2 . 6 . . Kills | -11 -10 -10 -10 -9 -8 -7 -7 -7 -7 -6 -6 -6 -6 -6 -6 -5 -5 -5 -5 -5 -5 -5 -4 -4 -4 -4 -4 -4 -4 -3 -3 ------- Run | Scr Mat Min Exi Min Mat Fac Low Low Dat Pro Fac Low Low Zio Dee Pro Fac Was Fac Upp Upp Zhi Pro Fac Was Fac Upp Upp War Pro Res Combat Hostiles Destroyed 213 | . 2 3 . 8 25 15 . . . 8 8 1 . 4 3 7 . . 24 7 6 . 2 2 . 21 4 3 12 11 37 Melee 37 | . . . . . 7 12 . . . . 6 1 . 2 . . . . . . . . 2 2 . 5 . . . . . Guns 15 | . 2 3 . . 3 . . . . . . . . . . . . . . . . . . . . 1 . . . . 6 Cannons 43 | . . . . . . . . . . 2 2 . . 2 1 . . . 10 . . . . . . 6 2 3 . 4 11 AOE 92 | . . . . 8 15 3 . . . 2 . . . . . 3 . . 9 7 5 . . . . 8 1 . 12 7 12 Classes Destroyed 23 | . 1 1 . 3 8 1 . . . . . . . 4 1 1 . . 1 . . . . . . . . . 2 . . Worker 14 | . . . . . 5 . . . . . 2 . . . . . . . 1 . . . . . . . . . . . 6 Builder 13 | . . . . . 2 2 . . . . . . . . . . . . 2 . . . . . . 4 . . . . 3 Tunneler 2 | . . . . 1 . . . . . . . . . . . . . . . . . . . . . . . . . . 1 Hauler 8 | . . . . . 2 1 . . . . . . . . . . . . 4 1 . . . . . . . . . . . Recycler 7 | . . . . . . . . . . . . . . . . . . . 3 . . . . . . 1 . . . . 3 Mechanic 1 | . . . . . . . . . . . . . . . . . . . . . . . . . . . . . 1 . . Operator 1 | . . . . . 1 . . . . . . . . . . . . . . . . . . . . . . . . . . Watcher 7 | . . . . . 1 1 . . . . 2 . . . . . . . 2 . . . . . . . . . . . 1 Swarmer 44 | . . . . 2 3 8 . . . . 3 . . . . . . . 4 1 3 . . . . 3 . . 3 4 10 Saboteur 4 | . . . . . . . . . . . . . . . . . . . . . . . . . . . . . 4 . . Grunt 84 | . 2 . . 5 17 5 . . . 6 . . . . . 3 . . 14 5 2 . . . . 7 . . 3 5 10 Brawler 5 | . . . . 1 1 . . . . . . . . . . 1 . . . 1 . . . . . 1 . . . . . Duelist 6 | . . . . . 1 1 . . . 2 . . . . . . . . . . . . . . . . . . 1 . 1 Sentry 15 | . . . . . 2 . . . . . 2 . . . . . . . 2 . 1 . . . . 4 . . . . 4 Hunter 10 | . . . . . 1 . . . . . 1 . . . . 2 . . . . . . . . . . 2 . . 2 2 Programmer 28 | . . . . . . 1 . . . . 2 1 . . . . . . 4 . . . 1 2 . 6 . . 1 . 10 Zionite 23 | . . . . . . . . . . . . . . 23 . . . . . . . . . . . . . . . . . Z-Light 2 | . . . . . . . . . . . . . . . 2 . . . . . . . . . . . . . . . . Tinkerer 2 | . . . . . . . . . . . . . . 2 . . . . . . . . . . . . . . . . . Master Thief 4 | . . . . . . . . . . . . . . . . 1 . . . . . . 1 . . . 2 . . . . Assembled 3 | . . 3 . . . . . . . . . . . . . . . . . . . . . . . . . . . . . Thug 1 | . . . . . . . . . . . . . . . . . . . . . . . . . . . . . 1 . . Savage 3 | . . . . . . . . . . . . . . . . . . . . . . . . . . . . 3 . . . Butcher 2 | . . . . . . . . . . . . . . 2 . . . . . . . . . . . . . . . . . Martyr 1 | . . . . . . . . . . . . . . 1 . . . . . . . . . . . . . . . . . Mutant 1 | . . . . . . . . . . . . . . 1 . . . . . . . . . . . . . . . . . Best Kill Streak 27 | . 1 3 . 3 7 10 . . . 3 3 1 . 5 3 3 . . 7 5 3 . 1 2 . 7 4 2 9 4 27 Combat Bots Only 11 | . 1 3 . 3 5 8 . . . 3 3 1 . 1 3 3 . . 5 4 3 . 1 2 . 4 4 2 8 4 11 Max Kills in Single Turn 6 | . 1 1 . 2 3 5 . . . 2 1 1 . 2 1 3 . . 4 2 3 . 1 1 . 3 1 1 4 4 6 Gunslinging . | . . . . . . . . . . . . . . . . . . . . . . . . . . . . . . . . Exploded 5 | . . . . 2 3 3 . . . 1 . . . . . 3 . . 3 2 3 . . . . 3 1 . 4 4 5 Melee 1 | . . . . . 1 1 . . . . 1 1 . 1 . . . . . . . . 1 1 . 1 . . . . . Uniques/NPCs Destroyed 1 | . . . . . . . . . . . . . . . 1 . . . . . . . . . . . . . . . . Z-Imprinter (-6/Deep Caves) Combat | -11 -10 -10 -10 -9 -8 -7 -7 -7 -7 -6 -6 -6 -6 -6 -6 -5 -5 -5 -5 -5 -5 -5 -4 -4 -4 -4 -4 -4 -4 -3 -3 -------- Run | Scr Mat Min Exi Min Mat Fac Low Low Dat Pro Fac Low Low Zio Dee Pro Fac Was Fac Upp Upp Zhi Pro Fac Was Fac Upp Upp War Pro Res Damage Taken 18906 | . 246 359 . 71 893 817 19 22 280 344 560 91 . 2395 1023 446 . . 791 247 537 . 439 8 . 2463 250 246 262 984 5113 Core 3011 | . 46 109 . 23 125 123 . . 97 36 126 31 . 326 123 56 . . 103 38 71 . 36 1 . 331 . 17 38 48 1107 Absorbed by Shields 911 | . . . . . . . . . . . . . . . . . . . 582 . . . . . . 329 . . . . . Reduced by Siege Mode 85 | . . . . . . . . . . . . . . . . . . . . . . . . . . . . . . 21 64 Core Remaining (%) 61 | 100 . . . 28 77 . . . . 63 . . . . . 22 . . . . . . 75 . . . . . . 62 . Volleys Fired 629 | . 17 18 . 8 37 1 . . 2 33 7 . . 39 21 27 . . 102 13 7 . 5 . . 53 36 15 11 21 156 Largest 2 | . 2 2 . 1 1 1 . . 1 1 1 . . 2 1 1 . . 2 1 1 . 1 . . 2 2 2 2 2 1 Hottest 175 | . 70 70 . 33 61 33 . . 30 48 69 . . 114 69 69 . . 114 69 69 . . . . 175 175 175 175 175 110 Shots Fired 723 | . 30 21 . 8 37 1 . . 2 33 7 . . 59 21 28 . . 126 13 7 . 5 . . 57 42 24 15 33 154 Gun 135 | . 30 21 . . 21 . . . . . . . . . . . . . . . . . . . . 22 . . . . 41 Cannon 438 | . . . . . . . . . . 20 6 . . 55 14 15 . . 106 2 4 . . . . 23 41 24 8 27 93 Launcher 121 | . . . . 8 16 1 . . . 13 . . . . 1 13 . . 15 11 3 . . . . 12 1 . 7 6 14 Special 29 | . . . . . . . . . 2 . 1 . . 4 6 . . . 5 . . . 5 . . . . . . . 6 Kinetic 216 | . 17 3 . . . . . . . 20 . . . 55 . . . . 64 . . . . . . 2 6 8 4 12 25 Thermal 159 | . 5 18 . . 21 . . . . . . . . . . . . . . . . . . . . 21 35 16 4 15 24 Explosive 59 | . . . . 8 16 1 . . . . . . . . . . . . . 11 3 . . . . 6 1 . 7 6 . Electromagnetic 218 | . 8 . . . . . . . . 13 6 . . . 15 28 . . 57 2 4 . . . . 28 . . . . 57 Entropic 42 | . . . . . . . . . . . . . . . . . . . . . . . . . . . . . . . 42 Robot Hit Streak 20 | . 5 4 . 2 12 2 . . 1 7 8 . . 4 6 8 . . 15 8 6 . . . . 20 6 5 10 4 14 Robot Miss Streak 5 | . 2 2 . 3 2 . . . 1 5 . . . 5 2 2 . . 3 2 . . . . . 2 3 1 3 2 5 Penetration Max 1 | . . . . . . . . . . . . . . 1 . . . . 1 . . . . . . . . . . . . Secondary Targets . | . . . . . . . . . . . . . . . . . . . . . . . . . . . . . . . . Shots Hit Robots 599 | . 19 14 . 5 47 34 . 5 2 16 23 4 . 77 9 11 . . 95 8 6 11 5 3 . 70 12 13 9 17 84 Core Hits 528 | . 6 5 . 12 64 23 . . . 19 16 1 . 32 3 12 . . 66 21 11 4 3 2 . 61 8 5 40 19 95 Critical Hits 30 | . . . . . 1 . . . . 1 1 . . 20 . . . . 1 . . . . 1 . 2 1 1 1 . . Critical Kills 8 | . . . . . . . . . . . . . . 7 . . . . . . . . . 1 . . . . . . . Critical Parts Destroyed 21 | . . . . . 1 . . . . 1 1 . . 12 . . . . 1 . . . . . . 2 1 1 1 . . Melee Attacks 379 | . . . . 2 41 52 1 17 7 . 33 9 2 70 . . . . 30 9 11 11 31 8 . 45 . . . . . Impact . | . . . . . . . . . . . . . . . . . . . . . . . . . . . . . . . . Slashing 350 | . . . . 2 41 52 1 17 7 . 4 9 2 70 . . . . 30 9 11 11 31 8 . 45 . . . . . Piercing 29 | . . . . . . . . . . . 29 . . . . . . . . . . . . . . . . . . . . Sneak Attacks 19 | . . . . 2 3 1 . . 1 . 3 . . 4 . . . . 3 . . . . . . 2 . . . . . Combat Hostiles . | . . . . . . . . . . . . . . . . . . . . . . . . . . . . . . . . Follow-up Attacks 14 | . . . . . 2 4 . 1 . . . . . 3 . . . . . . . . 2 . . 2 . . . . . Damage Inflicted 40103 | . 186 161 . 650 2747 1358 . 154 93 915 816 160 . 2977 174 831 . . 5333 1478 615 1160 192 112 . 4664 752 550 2935 1905 9185 Guns 2019 | . 186 161 . . 324 . . . . . . . . . . . . . . . . . . . . 457 . . . . 891 Cannons 9586 | . . . . . . . . . . 158 168 . . 736 122 294 . . 2846 61 98 . . . . 688 625 550 179 622 2439 Explosions 19930 | . . . . 461 1487 267 . . . 757 . . . . 52 537 . . 1839 1417 517 . . . . 2575 127 . 2756 1283 5855 Melee 8568 | . . . . 189 936 1091 . 154 93 . 648 160 . 2241 . . . . 648 . . 1160 192 112 . 944 . . . . . Ramming . | . . . . . . . . . . . . . . . . . . . . . . . . . . . . . . . . Kinetic 4024 | . 94 6 . . . . . . . 158 . . . 736 . . . . 1696 . . . . . . 38 147 270 133 226 520 Thermal 3036 | . 38 155 . . 324 . . . . 52 . . . . . . . . 129 . . . . . . 983 478 280 46 396 155 Explosive 10940 | . . . . 461 1487 267 . . . . . . . . . . . . 538 1417 517 . . . . 1512 127 . 2756 1283 575 Electromagnetic 7785 | . 54 . . . . . . . . 705 168 . . . 174 831 . . 2322 61 98 . . . . 1187 . . . . 2185 Impact . | . . . . . . . . . . . . . . . . . . . . . . . . . . . . . . . . Slashing 8055 | . . . . 189 936 1091 . 154 93 . 135 160 . 2241 . . . . 648 . . 1160 192 112 . 944 . . . . . Piercing 513 | . . . . . . . . . . . 513 . . . . . . . . . . . . . . . . . . . . Entropic 5750 | . . . . . . . . . . . . . . . . . . . . . . . . . . . . . . . 5750 Highest Corruption 29 | . . 7 7 7 . 1 1 1 1 1 1 1 1 9 9 9 . . 3 3 9 9 10 . 10 23 23 27 29 . 20 Average Corruption 7 | . . 6 7 7 . 1 1 1 1 1 1 1 1 7 9 9 . . 1 3 4 9 9 . 10 16 23 26 28 . 6 Corruption Purged . | . . . . . . . . . . . . . . . . . . . . . . . . . . . . . . . . Effects 372 | . . 8 9 24 . 3 1 2 . 1 1 . 1 26 13 25 . . 3 7 12 18 31 . 3 72 47 27 4 . 34 Message Errors 72 | . . 1 5 5 . 1 1 2 . . . . . 6 4 8 . . . 3 3 4 6 . . 7 5 3 . . 8 Matter Fused 74 | . . 2 1 6 . . . . . . . . . 7 3 4 . . . 2 4 3 9 . . 15 6 8 . . 4 Heat Flow Errors 31 | . . . 1 2 . . . . . . . . . 3 1 1 . . . 2 1 3 2 . . 5 4 4 . . 2 Energy Discharges 44 | . . 2 2 4 . 1 . . . 1 1 . . 2 4 2 . . 3 . . 5 3 . 1 6 4 . 1 . 2 Parts Rejected 2 | . . . . . . . . . . . . . . . . 1 . . . . . . . . . 1 . . . . . Data Loss (minor) 32 | . . 1 . 1 . 1 . . . . . . 1 1 1 3 . . . . 2 1 4 . . 7 4 . 1 . 4 Data Loss (major) 13 | . . . . 4 . . . . . . . . . . . 2 . . . . . 2 2 . 1 . . 1 1 . . Misfires 7 | . . . . . . . . . . . . . . . . 2 . . . . . . . . . 3 1 1 . . . Alerts 3 | . . . . . . . . . . . . . . . . . . . . . . . . . . . 2 1 . . . Misdirections 22 | . . . . . . . . . . . . . . . . . . . . . . . . . 1 11 7 2 1 . . Targeting Errors 67 | . . 2 . 2 . . . . . . . . . 7 . 1 . . . . 2 . 5 . . 16 13 7 . . 12 Weapon Failures 5 | . . . . . . . . . . . . . . . . 1 . . . . . . . . . 1 1 . . . 2 Overload Shots . | . . . . . . . . . . . . . . . . . . . . . . . . . . . . . . . . Overflow Damage 2403 | . . . . 60 122 43 . . . 2 24 2 . 201 . 3 . . 392 77 30 327 18 . . 230 89 . 17 80 686 Projectiles 331 | . . . . . . . . . . . . . . . . 3 . . 93 . . . . . . 12 89 . . 16 118 Explosions 1016 | . . . . . 5 20 . . . 2 . . . . . . . . 93 77 30 . . . . 140 . . 17 64 568 Melee 1056 | . . . . 60 117 23 . . . . 24 2 . 201 . . . . 206 . . 327 18 . . 78 . . . . . Knockbacks 37 | . . . . . . . . . . 7 . . . 5 . . . . 20 . . . . . . . 3 . . 2 . Impact . | . . . . . . . . . . . . . . . . . . . . . . . . . . . . . . . . Kinetic 35 | . . . . . . . . . . 7 . . . 5 . . . . 18 . . . . . . . 3 . . 2 . Secondary 2 | . . . . . . . . . . . . . . . . . . . 2 . . . . . . . . . . . . Self-Inflicted Damage 538 | . . . . 39 113 31 . . . 6 . . . . 10 24 . . . 22 . . . . . 149 . . . 94 50 Shots 28 | . . . . 1 5 1 . . . 1 . . . . 1 3 . . . 1 . . . . . 7 . . . 2 6 Rammed . | . . . . . . . . . . . . . . . . . . . . . . . . . . . . . . . . Targets Rammed . | . . . . . . . . . . . . . . . . . . . . . . . . . . . . . . . . Kicked . | . . . . . . . . . . . . . . . . . . . . . . . . . . . . . . . . Crushed . | . . . . . . . . . . . . . . . . . . . . . . . . . . . . . . . . Highest Temperature 358 | . 161 100 124 195 195 . . . 10 12 118 . . 358 235 345 . . 336 130 237 192 181 . . 247 331 280 63 162 226 Average Temperature 82 | . 67 35 66 88 89 . . . 7 7 48 . . 136 86 129 . . 74 70 130 116 97 . . 50 127 66 27 57 35 Received Heat Transfer 3428 | . 141 200 . 12 333 126 . 9 36 144 39 . . 162 297 63 . . 150 81 36 . 141 . . 402 . 63 54 90 849 Effects 1 | . . . . . . . . . . . . . . . . 1 . . . . . . . . . . . . . . . Interference 1 | . . . . . . . . . . . . . . . . 1 . . . . . . . . . . . . . . . Siege Activations 3 | . . . . . . . . . . . . . . . . . . . . . . . . . . . . . . 1 2 Total Turns 62 | . . . . . . . . . . . . . . . . . . . . . . . . . . . . . . 17 45 Longest Duration 30 | . . . . . . . . . . . . . . . . . . . . . . . . . . . . . . 17 30 Robots Corrupted 27 | . . . . . . . . . . 4 . . . . 1 4 . . 7 . 1 . . . . 2 . . . . 8 Combat Hostiles 23 | . . . . . . . . . . 4 . . . . 1 4 . . 5 . 1 . . . . 1 . . . . 7 Parts Fried 71 | . . . . . . . . . . 10 1 . . . 9 8 . . 14 . 1 . . . . 10 . . . . 18 Impact Corruptions . | . . . . . . . . . . . . . . . . . . . . . . . . . . . . . . . . Robots Melted 1 | . . . . . . . . . . . . . . . . . . . . . . . . . . . 1 . . . . Combat Hostiles 1 | . . . . . . . . . . . . . . . . . . . . . . . . . . . 1 . . . . Parts Melted 9 | . 1 . . . 2 . . . . . . . . 3 . . . . . . . . . . . . 2 1 . . . Heat Transferred 2803 | . 111 374 . . 618 . . . . 50 . . . . . . . . 100 . . . . . . 725 300 175 25 250 75 Parts Sabotaged . | . . . . . . . . . . . . . . . . . . . . . . . . . . . . . . . . Parts Stolen 10 | . . . . . . . . 2 . . . . . . . 3 . . . . . . 2 . . . 3 . . . . Parts Stripped . | . . . . . . . . . . . . . . . . . . . . . . . . . . . . . . . . Power Chain Reactions 7 | . . . . . . . . . . 1 . . . . . . . . 4 . . . . . . 2 . . . . . Missiles Intercepted . | . . . . . . . . . . . . . . . . . . . . . . . . . . . . . . . . Alert | -11 -10 -10 -10 -9 -8 -7 -7 -7 -7 -6 -6 -6 -6 -6 -6 -5 -5 -5 -5 -5 -5 -5 -4 -4 -4 -4 -4 -4 -4 -3 -3 ------- Run | Scr Mat Min Exi Min Mat Fac Low Low Dat Pro Fac Low Low Zio Dee Pro Fac Was Fac Upp Upp Zhi Pro Fac Was Fac Upp Upp War Pro Res Peak Influence 1306 | . 40 15 . 155 610 371 . . . . 584 . . . . . 89 31 1306 . . . . 400 155 605 . . . . 797 Average Influence 291 | . 24 4 . 38 254 222 . . . . 147 . . . . . 87 31 686 . . . . 168 143 280 . . . . 367 Maximum Alert Level 4 | . . . . . 2 1 . . . . 2 . . . . . . . 4 . . . . 2 . 2 . . . . 3 Low Security (%) 52 | . 100 100 . 100 46 35 . . . . 81 . . . . . 100 100 9 . . . . 61 100 45 . . . . 51 Level 1 14 | . . . . . 21 64 . . . . . . . . . . . . 3 . . . . . . 25 . . . . . Level 2 25 | . . . . . 31 . . . . . 18 . . . . . . . 58 . . . . 38 . 28 . . . . 30 Level 3 3 | . . . . . . . . . . . . . . . . . . . 1 . . . . . . . . . . . 17 Level 4 4 | . . . . . . . . . . . . . . . . . . . 26 . . . . . . . . . . . . Level 5 . | . . . . . . . . . . . . . . . . . . . . . . . . . . . . . . . . High Security . | . . . . . . . . . . . . . . . . . . . . . . . . . . . . . . . . Max Security . | . . . . . . . . . . . . . . . . . . . . . . . . . . . . . . . . Squads Dispatched 38 | . . . . . 6 4 . . . . 3 . . . . . . . 10 . . . . 1 . 5 . . . . 9 Investigation 11 | . . . . . 2 2 . . . . 2 . . . . . . . 2 . . . . . . 1 . . . . 2 Extermination 11 | . . . . . . 1 . . . . 1 . . . . . . . 3 . . . . 1 . 2 . . . . 3 Reinforcement 12 | . . . . . 1 1 . . . . . . . . . . . . 5 . . . . . . 2 . . . . 3 Assault 1 | . . . . . . . . . . . . . . . . . . . . . . . . . . . . . . . 1 Garrison 3 | . . . . . 3 . . . . . . . . . . . . . . . . . . . . . . . . . . Intercept . | . . . . . . . . . . . . . . . . . . . . . . . . . . . . . . . . Construction Impeded 4 | . . . . . 1 . . . . . . . . . . . . . 2 . . . . . . . . . . . 1 Haulers Reinforced 5 | . . . . . . . . . . . . . . . . . . . 3 . . . . . . 1 . . . . 1 Stealth | -11 -10 -10 -10 -9 -8 -7 -7 -7 -7 -6 -6 -6 -6 -6 -6 -5 -5 -5 -5 -5 -5 -5 -4 -4 -4 -4 -4 -4 -4 -3 -3 --------- Run | Scr Mat Min Exi Min Mat Fac Low Low Dat Pro Fac Low Low Zio Dee Pro Fac Was Fac Upp Upp Zhi Pro Fac Was Fac Upp Upp War Pro Res Distress Signals 18 | . 1 . . . 4 1 . . . . . . . . . . . . 3 1 . . . . . 1 . . 2 . 5 Communications Jammed 2 | . . . . . . . . . . . . . . . . . . . . . . . . . . . . . . . 2 Distress Signals 2 | . . . . . . . . . . . . . . . . . . . . . . . . . . . . . . . 2 Times Spotted 435 | . 2 5 . 9 42 23 1 6 4 15 27 1 . 33 3 10 . . 64 12 5 . 8 2 6 37 7 5 27 12 69 Peak Tracking Total 14 | . 2 5 . 3 6 5 1 4 4 6 9 1 . 5 3 4 . . 7 6 3 . 4 1 6 8 2 4 14 5 10 Tactical Retreats 42 | . . 1 . 1 1 3 . . . 4 3 . . 6 . . . . 11 1 . . . . . 7 . . 1 1 2 Traps | -11 -10 -10 -10 -9 -8 -7 -7 -7 -7 -6 -6 -6 -6 -6 -6 -5 -5 -5 -5 -5 -5 -5 -4 -4 -4 -4 -4 -4 -4 -3 -3 ------- Run | Scr Mat Min Exi Min Mat Fac Low Low Dat Pro Fac Low Low Zio Dee Pro Fac Was Fac Upp Upp Zhi Pro Fac Was Fac Upp Upp War Pro Res Traps Triggered 8 | . . . . . 1 . . . . . . . . . . . 1 . 1 . . . . 1 . 1 . . . . 3 Indirectly 3 | . . . . . . . . . . . . . . . . . . . 1 . . . . . . . . . . . 2 Trap Hack Attempts . | . . . . . . . . . . . . . . . . . . . . . . . . . . . . . . . . Triggered . | . . . . . . . . . . . . . . . . . . . . . . . . . . . . . . . . Disarmed . | . . . . . . . . . . . . . . . . . . . . . . . . . . . . . . . . Reprogrammed . | . . . . . . . . . . . . . . . . . . . . . . . . . . . . . . . . Reused 3 | . . . . . . . . 1 . . . . . . . . . . . . . . . . . . 2 . . . . Traps Extracted . | . . . . . . . . . . . . . . . . . . . . . . . . . . . . . . . . Installed 4 | . . . . . . . . 2 . . . . . . . . . . . . . . . . . . 2 . . . . Triggered 12 | . . . . . . . . . . . . 2 . . . . . . . . . . . . . . 1 . 9 . . Machines | -11 -10 -10 -10 -9 -8 -7 -7 -7 -7 -6 -6 -6 -6 -6 -6 -5 -5 -5 -5 -5 -5 -5 -4 -4 -4 -4 -4 -4 -4 -3 -3 ---------- Run | Scr Mat Min Exi Min Mat Fac Low Low Dat Pro Fac Low Low Zio Dee Pro Fac Was Fac Upp Upp Zhi Pro Fac Was Fac Upp Upp War Pro Res Machines Disabled 31 | . . . . 1 4 1 1 . 1 . . . 1 . 1 . . . 11 . . . 3 . . 4 . . . . 3 Max in Single Turn 4 | . . . . 1 1 1 1 . 1 . . . 1 . 1 . . . 4 . . . 1 . . 2 . . . . 1 Garrison Access 1 | . . . . . . 1 . . . . . . . . . . . . . . . . . . . . . . . . . Machines Sabotaged . | . . . . . . . . . . . . . . . . . . . . . . . . . . . . . . . . Garrisons Compromised . | . . . . . . . . . . . . . . . . . . . . . . . . . . . . . . . . Overloaded Fab Kills . | . . . . . . . . . . . . . . . . . . . . . . . . . . . . . . . . Fab Network Shutdowns 3 | . . . . . . . . . . . 1 . . . . . . . 1 . . . . 1 . . . . . . . Hacking | -11 -10 -10 -10 -9 -8 -7 -7 -7 -7 -6 -6 -6 -6 -6 -6 -5 -5 -5 -5 -5 -5 -5 -4 -4 -4 -4 -4 -4 -4 -3 -3 --------- Run | Scr Mat Min Exi Min Mat Fac Low Low Dat Pro Fac Low Low Zio Dee Pro Fac Was Fac Upp Upp Zhi Pro Fac Was Fac Upp Upp War Pro Res Machines Accessed 69 | . 1 . 2 . 5 9 . 1 3 . 10 . 1 1 . . 2 . 8 1 . 4 . 2 . 7 . . 4 . 8 Terminals 29 | . 1 . . . 4 4 . 1 . . 7 . . . . . 2 . 4 . . . . . . 3 . . . . 3 Fabricators 10 | . . . . . . 2 . . . . 3 . . . . . . . 2 . . . . 1 . 1 . . . . 1 Repair Stations 8 | . . . . . . 2 . . . . . . . . . . . . 1 . . . . 1 . 2 . . . . 2 Recycling Units 1 | . . . . . . . . . . . . . . . . . . . 1 . . . . . . . . . . . . Scanalyzers 3 | . . . . . 1 . . . . . . . . . . . . . . . . . . . . 1 . . . . 1 Garrison Access 2 | . . . . . . 1 . . . . . . . . . . . . . . . . . . . . . . . . 1 Total Hacks 239 | . 1 . 5 . 9 18 . 4 22 . 45 . 1 2 . . 4 . 38 1 . 17 . 10 . 18 . . 6 . 38 Successful 154 | . . . 5 . 4 8 . 3 22 . 27 . 1 2 . . 1 . 19 1 . 17 . 6 . 6 . . 6 . 26 Failed 85 | . 1 . . . 5 10 . 1 . . 18 . . . . . 3 . 19 . . . . 4 . 12 . . . . 12 Catastrophic 16 | . 1 . . . 3 3 . . . . . . . . . . 1 . 4 . . . . . . 3 . . . . 1 Database Lockouts . | . . . . . . . . . . . . . . . . . . . . . . . . . . . . . . . . Manual 83 | . 1 . 1 . 5 4 . 3 . . 27 . 1 1 . . 4 . 17 . . . . . . 6 . . 1 . 12 Terminals 98 | . 1 . . . 6 7 . 4 . . 34 . . . . . 4 . 21 . . . . . . 7 . . . . 14 Fabricators 36 | . . . . . . 5 . . . . 11 . . . . . . . 12 . . . . 3 . 1 . . . . 4 Repair Stations 32 | . . . . . . 5 . . . . . . . . . . . . 3 . . . . 7 . 6 . . . . 11 Recycling Units 2 | . . . . . . . . . . . . . . . . . . . 2 . . . . . . . . . . . . Scanalyzers 14 | . . . . . 3 . . . . . . . . . . . . . . . . . . . . 4 . . . . 7 Garrison Access 3 | . . . . . . 1 . . . . . . . . . . . . . . . . . . . . . . . . 2 Terminal Hacks 81 | . . . 5 . 1 . . 3 22 . 11 . 1 2 . . . . 5 1 . 17 . . . 1 . . 6 . 6 Record 21 | . . . 4 . . . . 1 6 . . . . . . . . . . . . 5 . . . . . . 5 . . Part Schematic 21 | . . . . . . . . . 8 . 4 . . 2 . . . . 1 . . 4 . . . . . . . . 2 Robot Schematic 5 | . . . . . . . . . 5 . . . . . . . . . . . . . . . . . . . . . . Robot Analysis 6 | . . . . . . . . 2 . . . . . . . . . . . . . 4 . . . . . . . . . Prototype ID Bank 8 | . . . . . . . . . 3 . 1 . . . . . . . . . . 4 . . . . . . . . . Open Door 3 | . . . . . . . . . . . . . 1 . . . . . . 1 . . . . . . . . 1 . . Branch Access Points 6 | . . . . . 1 . . . . . 2 . . . . . . . 1 . . . . . . 1 . . . . 1 Machine Index 1 | . . . . . . . . . . . . . . . . . . . . . . . . . . . . . . . 1 Fabricator Index 1 | . . . . . . . . . . . 1 . . . . . . . . . . . . . . . . . . . . Locate Traps 3 | . . . . . . . . . . . . . . . . . . . 2 . . . . . . . . . . . 1 Recall Investigation 1 | . . . . . . . . . . . 1 . . . . . . . . . . . . . . . . . . . . Recall Reinforcements 1 | . . . . . . . . . . . . . . . . . . . 1 . . . . . . . . . . . . Hauler Manifests 2 | . . . . . . . . . . . 1 . . . . . . . . . . . . . . . . . . . 1 Registered Prototypes 1 | . . . . . . . . . . . 1 . . . . . . . . . . . . . . . . . . . . EX-Prototype ID Bank 1 | . . . 1 . . . . . . . . . . . . . . . . . . . . . . . . . . . . Fabricator Hacks 23 | . . . . . . 3 . . . . 8 . . . . . . . 9 . . . . 2 . . . . . . 1 Network Status 1 | . . . . . . . . . . . . . . . . . . . 1 . . . . . . . . . . . . Load Schematic 11 | . . . . . . 2 . . . . 4 . . . . . . . 3 . . . . 1 . . . . . . 1 Build 11 | . . . . . . 1 . . . . 4 . . . . . . . 5 . . . . 1 . . . . . . . Repair Station Hacks 20 | . . . . . . 4 . . . . . . . . . . . . 2 . . . . 4 . 1 . . . . 9 Scan Component 11 | . . . . . . 2 . . . . . . . . . . . . 1 . . . . 2 . 1 . . . . 5 Repair 9 | . . . . . . 2 . . . . . . . . . . . . 1 . . . . 2 . . . . . . 4 Recycling Unit Hacks . | . . . . . . . . . . . . . . . . . . . . . . . . . . . . . . . . Scanalyzer 12 | . . . . . 3 . . . . . . . . . . . . . . . . . . . . 3 . . . . 6 Insert Component 8 | . . . . . 2 . . . . . . . . . . . . . . . . . . . . 3 . . . . 3 Analyze 4 | . . . . . 1 . . . . . . . . . . . . . . . . . . . . . . . . . 3 Garrison Access Hacks 1 | . . . . . . 1 . . . . . . . . . . . . . . . . . . . . . . . . . Seal Access 1 | . . . . . . 1 . . . . . . . . . . . . . . . . . . . . . . . . . Unauthorized Hacks 17 | . . . . . . . . . . . 8 . . . . . 1 . 3 . . . . . . 1 . . . . 4 Terminals 15 | . . . . . . . . . . . 8 . . . . . 1 . 2 . . . . . . 1 . . . . 3 Track 3 | . . . . . . . . . . . 1 . . . . . . . . . . . . . . . . . . . 2 Assimilate 4 | . . . . . . . . . . . 3 . . . . . . . 1 . . . . . . . . . . . . Botnet 7 | . . . . . . . . . . . 3 . . . . . 1 . 1 . . . . . . 1 . . . . 1 Operators 1 | . . . . . . . . . . . 1 . . . . . . . . . . . . . . . . . . . . Fabricators . | . . . . . . . . . . . . . . . . . . . . . . . . . . . . . . . . Repair Stations . | . . . . . . . . . . . . . . . . . . . . . . . . . . . . . . . . Recycling Units 1 | . . . . . . . . . . . . . . . . . . . 1 . . . . . . . . . . . . Mask 1 | . . . . . . . . . . . . . . . . . . . 1 . . . . . . . . . . . . Scanalyzers . | . . . . . . . . . . . . . . . . . . . . . . . . . . . . . . . . Garrison Access 1 | . . . . . . . . . . . . . . . . . . . . . . . . . . . . . . . 1 Watchers 1 | . . . . . . . . . . . . . . . . . . . . . . . . . . . . . . . 1 Data Cores Recovered . | . . . . . . . . . . . . . . . . . . . . . . . . . . . . . . . . Used . | . . . . . . . . . . . . . . . . . . . . . . . . . . . . . . . . Hacking Detections 50 | . 1 . . . 5 8 . 1 . . 10 . . . . . 2 . 7 . . . . 2 . 6 . . . . 8 Full Trace Events 9 | . . . . . 1 2 . . . . 2 . . . . . . . 1 . . . . . . 1 . . . . 2 Feedback Events 1 | . . . . . . . . . . . . . . . . . . . . . . . . . . . . . . . 1 Corruption 1 | . . . . . . . . . . . . . . . . . . . . . . . . . . . . . . . 1 Feedback Blocked . | . . . . . . . . . . . . . . . . . . . . . . . . . . . . . . . . Robot Schematics Acquired 5 | . . . . . . . . . 5 . . . . . . . . . . . . . . . . . . . . . . Robots Built . | . . . . . . . . . . . . . . . . . . . . . . . . . . . . . . . . Matter . | . . . . . . . . . . . . . . . . . . . . . . . . . . . . . . . . Time . | . . . . . . . . . . . . . . . . . . . . . . . . . . . . . . . . Total Robot Build Rating . | . . . . . . . . . . . . . . . . . . . . . . . . . . . . . . . . Part Schematics Acquired 24 | . . . . . 1 . . . 8 . 4 . . 2 . . . . 1 . . 4 . . . . . . . . 4 Parts Built 13 | . . . . . . 2 . . . . 4 . . . . . . . 6 . . . . 1 . . . . . . . Matter 1893 | . . . . . . 190 . . . . 402 . . . . . . . 1016 . . . . 285 . . . . . . . Time 827 | . . . . . . 47 . . . . 100 . . . . . . . 528 . . . . 152 . . . . . . . Total Part Build Rating 69 | . . . . . . 10 . . . . 22 . . . . . . . 32 . . . . 5 . . . . . . . Parts Repaired 9 | . . . . . . 2 . . . . . . . . . . . . 1 . . . . 2 . . . . . . 4 Time 405 | . . . . . . 75 . . . . . . . . . . . . 13 . . . . 104 . . . . . . 213 Parts Recycled . | . . . . . . . . . . . . . . . . . . . . . . . . . . . . . . . . Recycled Matter . | . . . . . . . . . . . . . . . . . . . . . . . . . . . . . . . . Retrieved Matter . | . . . . . . . . . . . . . . . . . . . . . . . . . . . . . . . . Retrieved Components . | . . . . . . . . . . . . . . . . . . . . . . . . . . . . . . . . Parts Scanalyzed 3 | . . . . . 1 . . . . . . . . . . . . . . . . . . . . . . . . . 2 Part Schematics Acquired 3 | . . . . . 1 . . . . . . . . . . . . . . . . . . . . . . . . . 2 Parts Damaged . | . . . . . . . . . . . . . . . . . . . . . . . . . . . . . . . . Bothacking | -11 -10 -10 -10 -9 -8 -7 -7 -7 -7 -6 -6 -6 -6 -6 -6 -5 -5 -5 -5 -5 -5 -5 -4 -4 -4 -4 -4 -4 -4 -3 -3 ------------ Run | Scr Mat Min Exi Min Mat Fac Low Low Dat Pro Fac Low Low Zio Dee Pro Fac Was Fac Upp Upp Zhi Pro Fac Was Fac Upp Upp War Pro Res Used RIF Installer . | . . . . . . . . . . . . . . . . . . . . . . . . . . . . . . . . Robots Hacked 4 | . . . . . . . . . 1 . 1 . . 1 . . . . 1 . . . . . . . . . . . . Non-combat 1 | . . . . . . . . . . . 1 . . . . . . . . . . . . . . . . . . . . Combat 3 | . . . . . . . . . 1 . . . . 1 . . . . 1 . . . . . . . . . . . . Robot Hacks Applied 4 | . . . . . . . . . 1 . 1 . . 1 . . . . 1 . . . . . . . . . . . . parse_system 3 | . . . . . . . . . 1 . . . . 1 . . . . 1 . . . . . . . . . . . . find_chute 1 | . . . . . . . . . . . 1 . . . . . . . . . . . . . . . . . . . . Relay Couplers Released . | . . . . . . . . . . . . . . . . . . . . . . . . . . . . . . . . Robots Rewired 1 | . . . . . . . . . . . . . . . . . 1 . . . . . . . . . . . . . . Allies Hacked 3 | . . . . . . . . . . . . . . . . . . . 3 . . . . . . . . . . . . Hacks Repelled 1 | . . . . . . . . . . . . . . . . . . . 1 . . . . . . . . . . . . Allies | -11 -10 -10 -10 -9 -8 -7 -7 -7 -7 -6 -6 -6 -6 -6 -6 -5 -5 -5 -5 -5 -5 -5 -4 -4 -4 -4 -4 -4 -4 -3 -3 -------- Run | Scr Mat Min Exi Min Mat Fac Low Low Dat Pro Fac Low Low Zio Dee Pro Fac Was Fac Upp Upp Zhi Pro Fac Was Fac Upp Upp War Pro Res Total Allies 9 | . . 3 . 1 . . . . . . 2 . . . . . 1 . 1 . . . . . 1 . . . . . . Largest Group 3 | . . 3 . 1 . . . . . . 1 1 1 1 1 . 1 1 2 . . . . . 1 . . . . . . Highest-Rated Group 70 | . . 40 . 31 . . . . . . 10 10 10 10 9 . 60 60 70 . . . . . 46 . . . . . . Highest-Rated Ally 60 | . . 16 . 31 . . . . . . 10 10 10 10 9 . 60 60 60 . . . . . 46 . . . . . . Total Orders 15 | . . . . . . . . . . . 4 . . 1 1 . . . 9 . . . . . . . . . . . . STAY 7 | . . . . . . . . . . . 2 . . 1 1 . . . 3 . . . . . . . . . . . . GOTO 1 | . . . . . . . . . . . . . . . . . . . 1 . . . . . . . . . . . . FOLLOW 7 | . . . . . . . . . . . 2 . . . . . . . 5 . . . . . . . . . . . . Ally Attacks 122 | . . 14 . 7 . . . . . . . . . . . . . . 96 . . . . . 5 . . . . . . Total Damage 1988 | . . 151 . 84 . . . . . . . . . . . . . . 1617 . . . . . 136 . . . . . . Kills 15 | . . 1 . 1 . . . . . . . . . . . . . . 13 . . . . . . . . . . . . Allies Corrupted . | . . . . . . . . . . . . . . . . . . . . . . . . . . . . . . . . Allies Melted . | . . . . . . . . . . . . . . . . . . . . . . . . . . . . . . . . Intel | -11 -10 -10 -10 -9 -8 -7 -7 -7 -7 -6 -6 -6 -6 -6 -6 -5 -5 -5 -5 -5 -5 -5 -4 -4 -4 -4 -4 -4 -4 -3 -3 ------- Run | Scr Mat Min Exi Min Mat Fac Low Low Dat Pro Fac Low Low Zio Dee Pro Fac Was Fac Upp Upp Zhi Pro Fac Was Fac Upp Upp War Pro Res Robot Analysis Total 6 | . . . . . . . . 2 . . . . . . . . . . . . . 4 . . . . . . . . . Derelict Logs Recovered 14 | . . 1 . 1 . . 2 2 . 2 . . . 2 . 2 . . . . . . 1 . . . 1 . . . . Drone Launches 4 | . . . . . . . . . . . . . . . . . . . 4 . . . . . . . . . . . . Drone Recoveries . | . . . . . . . . . . . . . . . . . . . . . . . . . . . . . . . . Exploration | -11 -10 -10 -10 -9 -8 -7 -7 -7 -7 -6 -6 -6 -6 -6 -6 -5 -5 -5 -5 -5 -5 -5 -4 -4 -4 -4 -4 -4 -4 -3 -3 ------------- Run | Scr Mat Min Exi Min Mat Fac Low Low Dat Pro Fac Low Low Zio Dee Pro Fac Was Fac Upp Upp Zhi Pro Fac Was Fac Upp Upp War Pro Res Turns Passed 20899 | . 179 383 424 935 1421 1460 292 295 120 441 953 307 187 2026 410 622 91 286 1853 402 396 496 762 662 67 1128 568 446 818 498 1971 Spaces Moved 13620 | 1 97 186 260 496 523 993 357 346 108 346 817 398 243 1554 454 568 93 407 1239 340 391 198 307 302 86 657 244 174 431 214 790 Core 9 | . . . . . . . . . . . . . . . . . . . . . . . . . . . . . . . 9 Treads 2784 | . . 119 260 496 448 . . . . . . . . . . . . . . . . . . . . 84 244 174 431 214 314 Legs 1449 | 1 97 67 . . 75 384 . . . . . . . 228 89 . . . . . . 101 307 100 . . . . . . . Wheels . | . . . . . . . . . . . . . . . . . . . . . . . . . . . . . . . . Hover 9378 | . . . . . . 609 357 346 108 346 817 398 243 1326 365 568 93 407 1239 340 391 97 . 202 86 573 . . . . 467 Flight . | . . . . . . . . . . . . . . . . . . . . . . . . . . . . . . . . Fastest Speed 50 | 120 120 150 160 160 180 63 72 72 72 72 68 68 72 72 53 53 58 58 55 65 65 120 150 65 65 55 180 180 160 165 50 Average Speed 106 | 120 136 178 161 177 192 107 72 72 72 100 78 70 72 102 71 59 58 58 66 70 81 210 150 94 65 98 183 183 173 191 117 Slowest Speed 300 | 120 180 180 180 180 250 190 72 72 72 146 146 72 72 230 230 136 58 58 128 127 146 300 150 150 65 180 200 185 186 195 195 Overloaded Moves . | . . . . . . . . . . . . . . . . . . . . . . . . . . . . . . . . Propulsion Burnouts . | . . . . . . . . . . . . . . . . . . . . . . . . . . . . . . . . Robots Hopped . | . . . . . . . . . . . . . . . . . . . . . . . . . . . . . . . . Cave-ins Triggered 3 | . . . . . . 1 . . . . . . . . . . . . . . 2 . . . . . . . . . . Teleports 1 | . . . . . . . . . . . . . . . . . . . . . . . . . . . . . . . 1 Exploration Rate (%) 50 | 1 21 35 60 79 47 36 60 49 82 57 25 66 53 85 80 57 3 92 26 70 56 63 40 6 97 19 51 34 72 51 28 Regions Visited 31 Branch Regions 20 Pre-discovered Areas 11 | . . . 1 . . . . 1 1 1 . . . 3 . . . . . . . 3 . . . . . . 1 . . Known Exits Taken 13 | . . . . . 1 1 . . . 1 1 . . . 1 1 . . 1 1 1 1 1 . . 1 1 . . . . Unknown Exits Taken 14 | 1 1 1 1 1 . . 1 1 1 . . 1 1 1 . . . . . . . . . . . . . 1 1 1 . Scrap Searched 25 | . . . . 2 . . 1 4 . 1 . 5 1 4 . 1 . . . 1 . . 2 . . . 1 1 . 1 . Spaces Dug 201 | . . . . . 11 7 . 6 3 11 7 4 1 . . . . . 17 26 11 . 11 4 . 8 15 7 19 5 28 Terrain Destroyed 1006 | . . . . 96 164 20 . 6 3 13 7 4 1 2 . . . . 103 145 52 . 11 4 . 123 48 10 36 67 91 Melee 99 | . . . . . 11 7 . 6 3 . 7 4 1 . . . . . 17 9 11 . 11 4 . 8 . . . . . Projectile 115 | . . . . . . . . . . 7 . . . 2 . . . . 20 . . . . . . 4 25 10 2 8 37 AOE 792 | . . . . 96 153 13 . . . 6 . . . . . . . . 66 136 41 . . . . 111 23 . 34 59 54 Actions | -11 -10 -10 -10 -9 -8 -7 -7 -7 -7 -6 -6 -6 -6 -6 -6 -5 -5 -5 -5 -5 -5 -5 -4 -4 -4 -4 -4 -4 -4 -3 -3 --------- Run | Scr Mat Min Exi Min Mat Fac Low Low Dat Pro Fac Low Low Zio Dee Pro Fac Was Fac Upp Upp Zhi Pro Fac Was Fac Upp Upp War Pro Res Total 18797 | . 117 215 267 540 840 1333 390 368 138 408 1081 414 255 1821 516 830 130 459 2095 468 441 259 561 671 96 1034 328 279 490 263 1690 Wait 3131 | . 2 2 . 21 193 239 27 . 21 16 189 5 . 74 2 196 25 27 609 92 19 31 166 324 10 174 6 81 16 14 550 Move 13588 | . 96 185 259 495 522 991 356 345 107 345 816 397 242 1553 453 567 93 406 1238 339 388 197 306 302 85 656 243 173 430 213 790 Hop . | . . . . . . . . . . . . . . . . . . . . . . . . . . . . . . . . Pick Up 209 | . . 3 5 6 14 11 3 3 . 6 7 2 5 14 8 9 . 5 23 4 2 1 16 7 1 12 14 1 3 . 24 Fast Attach 139 | . 1 3 . 1 9 11 . . . . 2 . . 21 8 5 . 6 14 . . 8 3 4 . 8 2 2 9 1 21 Attach 200 | . 1 3 . 3 4 4 1 . 1 4 12 . . 16 8 7 . 3 17 1 2 2 6 12 . 29 7 3 1 . 53 Detach 177 | . . 1 2 3 1 2 1 . . 3 7 1 . 9 7 6 . 3 24 . 1 5 10 9 . 27 3 3 7 . 42 Swap 114 | . . . . 1 10 5 1 . . . 1 . . 5 1 3 . . 18 8 6 . 2 . . 17 2 . 3 12 19 Drop 227 | . . . 1 . 11 23 . 2 . 1 7 . 6 23 8 10 . 9 18 2 3 4 18 5 . 15 13 1 10 2 35 Fire 629 | . 17 18 . 8 37 1 . . 2 33 7 . . 39 21 27 . . 102 13 7 . 5 . . 53 36 15 11 21 156 Melee 362 | . . . . 2 39 45 1 16 7 . 33 9 2 67 . . . . 30 9 11 11 29 8 . 43 . . . . . Ram . | . . . . . . . . . . . . . . . . . . . . . . . . . . . . . . . . Kick . | . . . . . . . . . . . . . . . . . . . . . . . . . . . . . . . . Crush . | . . . . . . . . . . . . . . . . . . . . . . . . . . . . . . . . Escape Stasis 3 | . . . . . . 1 . . . . . . . . . . . . . . 2 . . . . . . . . . . Rewire 12 | . . . . . . . . . . . . . . . . . 12 . . . . . . . . . . . . . . Trap 4 | . . . . . . . . 2 . . . . . . . . . . . . . . . . . . 2 . . . . Miscellaneous 2 | . . . . . . . . . . . . . . . . . . . 2 . . . . . . . . . . . . Route ------- -11/Scrapyard -10/Materials -10/Mines -10/Exiles -9/Mines -8/Materials (discovered 2 exits: *Fac x2) -7/Factory (discovered 3 exits: *Fac / *Sto / *Low) -7/Lower Caves -7/Lower Caves -7/Data Miner -6/Proximity Caves -6/Factory (discovered 4 exits: *Fac x2 / *Low x2) -6/Lower Caves -6/Lower Caves (discovered 2 exits: *Fac / *Zio) -6/Zion (discovered 2 exits: [*Dee] / [*Pro]) -6/Deep Caves -5/Proximity Caves -5/Factory -5/Waste -5/Factory (discovered 3 exits: *Fac / *Upp x2) -5/Upper Caves -5/Upper Caves (discovered 2 exits: *Fac / *Zhi) -5/Zhirov -4/Proximity Caves -4/Factory -4/Waste -4/Factory (discovered 5 exits: Res / *Upp x2 / Ext x2) -4/Upper Caves -4/Upper Caves (discovered 2 exits: *Res / *War) -4/Warlord -3/Proximity Caves -3/Research (discovered 4 exits: [Res] / Arm / Qua x2) History --------- Turn | Location | Event 1 | -11/Scrapyard | Discovered new exit (range 0) 1 | -11/Scrapyard | Entered Materials 121 | -10/Materials | Discovered new exit (range 9) 180 | -10/Materials | Entered Mines 186 | -10/Mines | Assisted by bots powering up and referring to "LRC-V3" 229 | -10/Mines | Learned 2 Materials zone layouts 279 | -10/Mines | Assembled infested the area 305 | -10/Mines | Build established: Mutant 325 | -10/Mines | Core integrity fell below 50% 367 | -10/Mines | Lost 5 parts (1p2n2w) 556 | -10/Mines | Deemed a non-threat by the Exiles lab entrance 556 | -10/Mines | Discovered new exit (range 5) 563 | -10/Mines | Entered Exiles 606 | -10/Exiles | Met 8R-AWN 633 | -10/Exiles | Met EX-HEX 680 | -10/Exiles | Met EX-BIN 702 | -10/Exiles | Aligned with FarCom system 704 | -10/Exiles | Given EX-Vault access code 753 | -10/Exiles | Opened EX-Vault 761 | -10/Exiles | Found Gui. Plasma Cannon 764 | -10/Exiles | Found Trap Reconfigurator 770 | -10/Exiles | Found Supersonic Drone Bay 804 | -10/Exiles | Warned to stay clear of 0b10 Research branches 854 | -10/Exiles | Met EX-DEC 894 | -10/Exiles | Learned location of Zion (-6) 974 | -10/Exiles | Discovered new exit (range 10) 987 | -10/Exiles | Stole three prototypes: Trap Reconfigurator, Supersonic Drone Bay, Gui. Plasma Cannon 987 | -10/Exiles | Entered Mines 1082 | -9/Mines | Received a Rocket Launcher from a helpful Derelict 1267 | -9/Mines | Found a hidden stash of uninstalled traps 1303 | -9/Mines | Received a Mining Laser from a helpful Derelict 1409 | -9/Mines | A weapon hastily lodged in a ceiling crevice suddenly fell to the ground 1586 | -9/Mines | Build established: Trapper-Mutant 1833 | -9/Mines | Learned Materials non-interactive machine intel 1887 | -9/Mines | Discovered new exit (range 15) 1922 | -9/Mines | Entered Materials 1922 | -8/Materials | Evolved 4 slots: Utility x4 1923 | -8/Materials | Identified exit to Factory 1924 | -8/Materials | Loaded intel: 43 non-interactive machine locations 2491 | -8/Materials | Discovered exit to Factory (range 10) 2738 | -8/Materials | Build established: Hauler-Mutant 2882 | -8/Materials | Garrison activated, responded to threat 2937 | -8/Materials | Lost 3 parts (1p2n) 3343 | -8/Materials | Entered Factory 3343 | -7/Factory | Evolved 2 slots: Propulsion x2 3345 | -7/Factory | FarCom data flow suspended 3863 | -7/Factory | Discovered new exit (range 10) 3893 | -7/Factory | Identified exit to Storage 4143 | -7/Factory | Fabricated Cmb. Airjet? 4237 | -7/Factory | Crushed by falling debris 4285 | -7/Factory | Destroyed 8 combat bots 4477 | -7/Factory | Repaired Cmb. Airjet 4483 | -7/Factory | Discovered new exit (range 16) 4493 | -7/Factory | Identified exit to Factory 4498 | -7/Factory | Build established: Trapper-Mutant 4758 | -7/Factory | Repaired Cmb. Airjet 4768 | -7/Factory | Discovered new exit (range 12) 4785 | -7/Factory | Identified exit to Lower Caves 4803 | -7/Factory | Entered Lower Caves 4825 | -7/Lower Caves | Learned location of 1 exit from Factory 4867 | -7/Lower Caves | Encountered a Warlord checkpoint 4872 | -7/Lower Caves | Learned Factory terminal intel 4894 | -7/Lower Caves | Attacked by a delusional Derelict stockpiling parts 4986 | -7/Lower Caves | Build established: Hauler-Mutant 5092 | -7/Lower Caves | Discovered new exit (range 5) 5095 | -7/Lower Caves | Entered another Lower Caves area 5096 | -7/Lower Caves | Encountered a Warlord checkpoint 5137 | -7/Lower Caves | Learned Factory security intel 5187 | -7/Lower Caves | Spotted B-75 Beast 5211 | -7/Lower Caves | Spotted IX-63U(f) 5212 | -7/Lower Caves | Encountered a Master Thief 5221 | -7/Lower Caves | Trap Reconfigurator stolen by Master Thief 5297 | -7/Lower Caves | Spotted X7-2ZB(f) 5298 | -7/Lower Caves | Encountered a Master Thief 5299 | -7/Lower Caves | Gui. Plasma Cannon stolen by Master Thief 5375 | -7/Lower Caves | Discovered new exit (range 21) 5390 | -7/Lower Caves | Entered Data Miner 5390 | -7/Data Miner | Discovered new exit (range 6) 5400 | -7/Data Miner | Met Data Miner 5421 | -7/Data Miner | Learned location of Section 7 (-3) 5421 | -7/Data Miner | Acquired the access code to Warlord's prototype stash 5431 | -7/Data Miner | Received God Mode back door access code from Data Miner 5459 | -7/Data Miner | Data Conduit disabled 5510 | -7/Data Miner | Entered Proximity Caves 5858 | -6/Proximity Caves | Spotted B-75 Beast 5951 | -6/Proximity Caves | Entered Factory 5951 | -6/Factory | Evolved 2 slots: Utility x2 5952 | -6/Factory | Identified exit to Factory 5954 | -6/Factory | Loaded intel: 20 terminal locations 6021 | -6/Factory | Identified exit to Lower Caves 6485 | -6/Factory | Discovered exit to Factory (range 21) 6548 | -6/Factory | Fabricated Cmb. Gravmag System (x2) 6595 | -6/Factory | Fabricated Hyp. Gauss Rifle? 6731 | -6/Factory | Local fabrication network quarantined 6904 | -6/Factory | Entered Lower Caves 6904 | -6/Lower Caves | Accompanied by 1 ally 7043 | -6/Lower Caves | Encountered a Warlord checkpoint 7204 | -6/Lower Caves | Discovered new exit (range 8) 7211 | -6/Lower Caves | Entered another Lower Caves area 7211 | -6/Lower Caves | Accompanied by 1 ally 7211 | -6/Lower Caves | Discovered exit to Factory (range 20) 7285 | -6/Lower Caves | Acquired the password to a Derelict Tinkerer's latest research 7291 | -6/Lower Caves | Found Prototype Special Weapon 7392 | -6/Lower Caves | Discovered new exit (range 8) 7398 | -6/Lower Caves | Entered Zion 7398 | -6/Zion | Accompanied by 1 ally 7446 | -6/Zion | Found Prototype Device 7469 | -6/Zion | Discovered new exit (range 13) 7527 | -6/Zion | System corruption cleaned by Quarantine Array 7557 | -6/Zion | Learned Factory terminal intel 7564 | -6/Zion | Learned location of Quarantine (-3) 7611 | -6/Zion | Learned location of Warlord (-4) 7627 | -6/Zion | Learned location of 1 exit from Factory 7769 | -6/Zion | Learned Factory fabricator intel 7803 | -6/Zion | Received a visual enhancement algorithm 7960 | -6/Zion | Found Prototype Launcher 7960 | -6/Zion | Identified Gui. Missile Launcher 8104 | -6/Zion | Found Prototype Processor 8107 | -6/Zion | Found Prototype Processor 8109 | -6/Zion | Found Prototype Processor 8110 | -6/Zion | Found Prototype Hackware 8115 | -6/Zion | Identified Bomb Factory No. 2 8123 | -6/Zion | Found Prototype Processor 8195 | -6/Zion | Identified Molecular Deconstructor 8220 | -6/Zion | Discovered new exit (range 5) 8220 | -6/Zion | Saw the warning signs outside the Deep Caves entrance 8589 | -6/Zion | Attacked by Zionites 8814 | -6/Zion | Lost 5 parts (1p3u1w) 9129 | -6/Zion | Lost 8 parts (5n2u1w) 9342 | -6/Zion | Core integrity fell below 50% 9391 | -6/Zion | Lost 3 parts (2n1w) 9424 | -6/Zion | Entered Deep Caves 9424 | -6/Deep Caves | Accompanied by 1 ally 9534 | -6/Deep Caves | Attacked by Z-Imprinter 9561 | -6/Deep Caves | Destroyed Z-Imprinter 9604 | -6/Deep Caves | Found Prototype Protection 9604 | -6/Deep Caves | Identified Zio. Weapon Casing 9605 | -6/Deep Caves | Lost 6 parts (1p3n1u1w) 9615 | -6/Deep Caves | Found Prototype Device 9615 | -6/Deep Caves | Identified Zio. Metafield Generator 9621 | -6/Deep Caves | Identified Spectral Analyzer 9623 | -6/Deep Caves | Identified Exp. Signal Interpreter 9624 | -6/Deep Caves | Identified Exp. System Shield 9640 | -6/Deep Caves | Found Zio. Weapon Casing 9643 | -6/Deep Caves | Found Zio. Weapon Casing 9663 | -6/Deep Caves | Z-Facility disabled 9771 | -6/Deep Caves | Spotted as-03942 9831 | -6/Deep Caves | Discovered new exit (range 7) 9833 | -6/Deep Caves | Identified exit to Proximity Caves 9834 | -6/Deep Caves | Entered Proximity Caves 10011 | -5/Proximity Caves | Build established: Scavenger-Scout 10039 | -5/Proximity Caves | Learned 4 Factory zone layouts 10066 | -5/Proximity Caves | Learned Factory garrison access intel 10246 | -5/Proximity Caves | Spotted S8-RNP(f) 10247 | -5/Proximity Caves | Encountered a Master Thief 10251 | -5/Proximity Caves | Spotted 6W-9XV(f) 10252 | -5/Proximity Caves | Encountered a Master Thief 10257 | -5/Proximity Caves | Destroyed S8-RNP(f) 10260 | -5/Proximity Caves | Zio. Glidesys II stolen by Master Thief 10314 | -5/Proximity Caves | Lost 4 parts (1n3u) 10436 | -5/Proximity Caves | Spotted B-75 Beast 10454 | -5/Proximity Caves | Discovered exit to Factory (range 5) 10456 | -5/Proximity Caves | Entered Factory 10456 | -5/Factory | Evolved 2 slots: Utility x2 10457 | -5/Factory | Identified exit to Factory 10459 | -5/Factory | Loaded intel: 20 terminal locations 10460 | -5/Factory | Loaded intel: 6 fabricator locations 10461 | -5/Factory | Loaded intel: 4 garrison access locations 10542 | -5/Factory | Build established: Scavenger-Mutant 10547 | -5/Factory | Sucked down chute 10547 | -5/Factory | Entered Waste 10547 | -5/Waste | The area was eerily silent 10560 | -5/Waste | 1 allies followed down the chute 10679 | -5/Waste | Found Damper Plating 10682 | -5/Waste | Found Damper Plating 10707 | -5/Waste | Found Broken Adv. Force Booster 10794 | -5/Waste | Discovered new exit (range 21) 10833 | -5/Waste | Entered Factory 10833 | -5/Factory | Accompanied by 1 ally 10880 | -5/Factory | Repaired Lrg. Storage Unit 11231 | -5/Factory | Fabricated Cmb. Gravmag System? 11631 | -5/Factory | Fabricated Powered Armor? 11810 | -5/Factory | Fabricated Combat Drone Bay? 12002 | -5/Factory | Fabricated Combat Drone Bay? 12072 | -5/Factory | Found Prototype Device 12073 | -5/Factory | Identified Exp. Terrain Scanner 12144 | -5/Factory | Build established: Scavenger-Scout 12154 | -5/Factory | Local fabrication network quarantined 12307 | -5/Factory | Discovered exit to Factory (range 14) 12486 | -5/Factory | Spotted B-75 Beast 12578 | -5/Factory | Identified exit to Upper Caves 12686 | -5/Factory | Entered Upper Caves 12906 | -5/Upper Caves | Spotted B-75 Beast 12985 | -5/Upper Caves | Discovered new exit (range 19) 13078 | -5/Upper Caves | Attracted the attention of an 0b10 checkpoint 13088 | -5/Upper Caves | Identified exit to Upper Caves 13088 | -5/Upper Caves | Entered another Upper Caves area 13110 | -5/Upper Caves | Discovered exit to Factory (range 17) 13156 | -5/Upper Caves | Encountered a Warlord checkpoint 13233 | -5/Upper Caves | Attracted the attention of an 0b10 checkpoint 13352 | -5/Upper Caves | Crushed by falling debris 13355 | -5/Upper Caves | Crushed by falling debris 13478 | -5/Upper Caves | Discovered new exit (range 5) 13483 | -5/Upper Caves | Identified exit to Zhirov 13484 | -5/Upper Caves | Entered Zhirov 13485 | -5/Zhirov | Discovered new exit (range 3) 13540 | -5/Zhirov | Met Zhirov 13631 | -5/Zhirov | Learned location of Testing (-2) 13631 | -5/Zhirov | Learned location of Command (-1) 13657 | -5/Zhirov | Build established: Hauler-Assassin 13669 | -5/Zhirov | Zhirov requested help retrieving the SGEMP Prototype 13716 | -5/Zhirov | Found Alien Artifact 13716 | -5/Zhirov | Identified Integrated Dissipator 13716 | -5/Zhirov | Installed Integrated Dissipator, increased core heat dissipation (+2%) 13914 | -5/Zhirov | Found Alien Artifact 13978 | -5/Zhirov | Identified exit to Proximity Caves 13980 | -5/Zhirov | Entered Proximity Caves 14363 | -4/Proximity Caves | System corruption reached 10% 14383 | -4/Proximity Caves | Spotted B7-V8F(f) 14384 | -4/Proximity Caves | Encountered a Master Thief 14408 | -4/Proximity Caves | Destroyed B7-V8F(f) 14437 | -4/Proximity Caves | Spotted 21-2RA(f) 14438 | -4/Proximity Caves | Encountered a Master Thief 14441 | -4/Proximity Caves | Broken Adv. Force Booster stolen by Master Thief 14453 | -4/Proximity Caves | Spotted Q0-GUT(f) 14454 | -4/Proximity Caves | Encountered a Master Thief 14456 | -4/Proximity Caves | Adv. Reaction Control System stolen by Master Thief 14742 | -4/Proximity Caves | Entered Factory 14742 | -4/Factory | Evolved 2 slots: Utility x2 14803 | -4/Factory | Discovered new exit (range 27) 14914 | -4/Factory | Repaired Broken Cmb. Gravmag System 14947 | -4/Factory | Repaired Lrg. Storage Unit 15146 | -4/Factory | Local fabrication network quarantined 15263 | -4/Factory | Fabricated Exp. Signal Interpreter? 15369 | -4/Factory | Build established: Scavenger-Scout 15404 | -4/Factory | Sucked down chute 15404 | -4/Factory | Entered Waste 15405 | -4/Waste | Met a frightened Derelict 15418 | -4/Waste | Found Adv. Force Booster 15419 | -4/Waste | EMP discharged 15419 | -4/Waste | System corruption reached 10% 15424 | -4/Waste | Spotted C-40 Crusher 15424 | -4/Waste | Spotted C-40 Crusher 15435 | -4/Waste | Spotted C-40 Crusher 15438 | -4/Waste | Spotted C-40 Crusher 15445 | -4/Waste | Spotted C-40 Crusher 15446 | -4/Waste | Spotted C-40 Crusher 15457 | -4/Waste | Discovered new exit (range 18) 15469 | -4/Waste | Identified exit to Factory 15471 | -4/Waste | Entered Factory 15606 | -4/Factory | Identified Transdimensional Reconstructor 15606 | -4/Factory | Identified Exp. Armor Integrity Analyzer 15606 | -4/Factory | Identified Exp. Terrain Scan Processor 15781 | -4/Factory | Identified exit to Upper Caves 15781 | -4/Factory | Identified exit to Extension 15949 | -4/Factory | Discovered new exit (range 29) 16094 | -4/Factory | Lost 6 parts (2n3u1w) 16573 | -4/Factory | Build established: Scavenger-Mutant 16599 | -4/Factory | Entered Upper Caves 16746 | -4/Upper Caves | Spotted CN-TZV(f) 16748 | -4/Upper Caves | Encountered a Master Thief 16756 | -4/Upper Caves | Destroyed CN-TZV(f) 16760 | -4/Upper Caves | Spotted BB-8Z5(f) 16761 | -4/Upper Caves | Encountered a Master Thief 16773 | -4/Upper Caves | Destroyed BB-8Z5(f) 16809 | -4/Upper Caves | Spotted LY-9JM(f) 16810 | -4/Upper Caves | Encountered a Master Thief 16810 | -4/Upper Caves | Spotted GT-HJQ(f) 16811 | -4/Upper Caves | Encountered a Master Thief 16820 | -4/Upper Caves | Adv. Force Booster stolen by Master Thief 16833 | -4/Upper Caves | Supersonic Drone Bay stolen by Master Thief 16914 | -4/Upper Caves | Encountered a Warlord checkpoint 17091 | -4/Upper Caves | Identified exit to Upper Caves 17167 | -4/Upper Caves | Entered another Upper Caves area 17168 | -4/Upper Caves | Discovered new exit (range 23) 17203 | -4/Upper Caves | Ambushed by wild Derelicts 17227 | -4/Upper Caves | Encountered a Warlord checkpoint 17521 | -4/Upper Caves | Discovered new exit (range 30) 17613 | -4/Upper Caves | Entered Warlord 17642 | -4/Warlord | Discovered new exit (range 23) 17673 | -4/Warlord | System corruption cleaned by Quarantine Array 17845 | -4/Warlord | Learned 4 Quarantine zone layouts 17847 | -4/Warlord | Learned Armory fabricator intel 17847 | -4/Warlord | Learned Armory garrison access intel 17925 | -4/Warlord | Visited the Vortex Lab 17937 | -4/Warlord | Warlord's base attacked by MAIN.C 17941 | -4/Warlord | Found Prototype Launcher 17941 | -4/Warlord | Identified Vortex Catalyst Activator 17948 | -4/Warlord | Found Prototype Energy Cannon 17948 | -4/Warlord | Identified Vortex Cannon 17951 | -4/Warlord | Found Prototype Energy Gun 17951 | -4/Warlord | Identified Vortex Rail 17958 | -4/Warlord | Found Prototype Energy Gun 17958 | -4/Warlord | Identified Vortex Rifle 17963 | -4/Warlord | Found Vortex Cannon 18070 | -4/Warlord | Met Warlord 18087 | -4/Warlord | Opened Warlord's prototype stash 18115 | -4/Warlord | Found Prototype Device 18115 | -4/Warlord | Identified Exp. Focal Shield 18119 | -4/Warlord | Found Prototype Processor 18119 | -4/Warlord | Identified Exp. Core Analyzer 18128 | -4/Warlord | Found Exp. Targeting Computer 18137 | -4/Warlord | Found System Mapper 18234 | -4/Warlord | Build established: Scavenger-Skirmisher 18268 | -4/Warlord | Spotted Striker 18287 | -4/Warlord | Warlord forces counterattacked 18294 | -4/Warlord | Destroyed 8 combat bots 18339 | -4/Warlord | P-70 Sage assimilated allied AO-JV7(Y) 18340 | -4/Warlord | Spotted Striker 18364 | -4/Warlord | Spotted 46-ZJE(g) 18431 | -4/Warlord | Entered Proximity Caves 18847 | -3/Proximity Caves | Discovered new exit (range 29) 18929 | -3/Proximity Caves | Entered Research 18929 | -3/Research | Spotted B-86 Titan 18929 | -3/Research | Evolved 2 slots: Utility x2 18942 | -3/Research | Lost 3 parts (1p2u) 19098 | -3/Research | Spotted B-86 Titan 19231 | -3/Research | Repaired Broken Cmb. Gravmag System 19245 | -3/Research | Build established: Hacker-Mutant 19293 | -3/Research | Repaired Cmb. Gravmag System? 19420 | -3/Research | Found Gamma Bomb Array 19431 | -3/Research | Found Prototype Launcher 19431 | -3/Research | Identified Com. Tesla Bomb Launcher 19549 | -3/Research | Identified exit to Armory 19549 | -3/Research | Identified exit to Quarantine 19965 | -3/Research | Destroyed 11 combat bots 20035 | -3/Research | Warped through subspace 20094 | -3/Research | Repaired Exp. Weapon Shielding 20146 | -3/Research | Repaired Broken Cmb. Gravmag System 20560 | -3/Research | Discovered new exit (range 30) 20679 | -3/Research | First assault squad dispatched 20767 | -3/Research | System corruption reached 10% 20806 | -3/Research | Core integrity fell below 50% 20843 | -3/Research | Lost 8 parts (3n3u2w) 20891 | -3/Research | Core integrity fell below 20% 20900 | -3/Research | Self-destructed Last Messages --------------- 20876_ Com. HERF Cannon destroyed. 20878_ Fusion Compressor destroyed. 20878_ Dropped Lrg. Storage Unit. 20880_ Acquired Gamma Rifle. 20881_ System Shield destroyed. 20881_ K-01 Serf collects debris. 20885_ Dropped Gamma Rifle. 20887_ K-01 Serf collects debris. 20888_ Dropped Molecular Deconstructor. 20888_ Acquired Antimatter Reactor. 20889_ K-01 Serf collects debris. 20891_ Acquired Med. Treads. 20891_ K-01 Serf destroyed. 20894_ K-01 Serf cleans the Terminal. 20894_ Acquired Gamma Rifle. 20894_ K-01 Serf collects debris. 20896_ Gamma Rifle destroyed. 20896_ Acquired 30 matter. 20897_ K-01 Serf collects debris. 20899_ T0N,DXUYWZA2VC:VX4:J26EX Map ----- +----------------------------------------------------+ | # # # ######?####???????? | | # # # #########??#?#????? | | ##########+#### # #########??###????? | | ########## #### #####+##########?##?##?????? | | ########## #### ##### ###?###?###?? ????? | | ######## ####?##### ???? | | ######## ########## ?? ???? | | ######## ##############??##??? | | ######## ########### # ?? | | ###################### # #? ? ? ???? | | ###################### # ? ?#?? ? ? ?? | | ##################### # ?" ## ? ???? ?? | | " = # """"##? ?#??? | | "T # """"#? #??? | | A# ?"?"?######?#w?? | | ] ############## !% A# ?""""# ? ?#????? | | ############### # # +? ? ? | | # ######## # # # ??? | | # !######## ""T"" ###+###### ??# ???? | | / ! ######## """"" ##? ?+? ??? | | # ######## #####?##?###?? | | #! ! ######## ###?#??#???#?? | | # ######## % # ? ? ???#?? | | #######################g##### #? ??#?? | | ################ ]!!% g! # # ? ? ? #???? | | ################ !]@! *% # # ? ?#??? | | ################ !!*g%=g + ? ???#???? | | ################ |k # # ? ?#???? | | ################ | # # ? ? #???? | | ############################# # ? ? ? ????? | | """"" ################?#### #? ? ? ??????? | | ""T"" #####################? ###???#??????? | | ##################### ? #####?##?????? | | ##################### ?##?#?#??????? | | ##################?## ? ##???##??????? | | """ # ##?#######?? ?#?##?????????? | | """ # ? #########??# ? ?##??????????? | | ! """ # ? #####?#####?? ??#"???????????? | | # #####?###### ?#"???????????? | | + """ ####?##?#???? ??"???????????? | | # ? """ ##########?# ? ?w??????????? | | ##### # """ #######???#?? ??????????????? | | ?##?##?# # ? #??#?? ? ???????????????????? | | ??? ?? # ? ?? ??#?????? ????????????????????? | | ????????? ?????#?###?##### ??????????????????????? | | ?????????????????? ? ? ??????????????????????????? | | ?????????????????????????????????????????????????? | | ?????????????????????????????????????????????????? | | ?????????????????????????????????????????????????? | | ?????????????????????????????????????????????????? | +----------------------------------------------------+ Best States ------------- Heat Dissipation 101 Coolant Potential 50 Energy Generation 27 Energy Capacity 1170 Matter Stores 600 Matter Capacity 600 Sight Range 24 Robot Scan Range 22 Terrain Scan Range 30 Terrain Scan Density 1010 Jamming Range 16 Power Amplification 30 Armor Coverage 1200 Resistance: TH 10 Resistance: EX 25 Resistance: EM 90 Propulsion Shielding 66 Weapon Shielding 100 Melee Speed Boost 30 Evasion (%) 61 Core Analysis 15 Armor Integrity Analysis 90 Recoil Reduction 4 Particle Charging 20 Salvage Targeting 4 Offensive Hacking 32 Defensive Hacking 20 Item Schematics ----------------- Cmb. Airjet | -8/Materials | Scanalyzed Combat Drone Bay | -7/Data Miner | Free Lgt. Regenerative Plating | -7/Data Miner | Free Exp. Flexi-carbon Leg | -7/Data Miner | Free Cmb. Gravmag System | -7/Data Miner | Free Triangulator | -7/Data Miner | Free Exp. Targeting Computer | -7/Data Miner | Free Plasma Sword | -7/Data Miner | Free Kinetic Spear | -7/Data Miner | Free Hyp. Gauss Rifle | -6/Factory | Hacked Imp. Propulsion Shielding | -6/Factory | Hacked Power Sword | -6/Factory | Hacked Powered Armor | -6/Factory | Hacked Hvy. Battle Rifle | -6/Zion | Free Bore Cannon | -6/Zion | Free Exp. Signal Interpreter | -5/Factory | Hacked Assault Drone Bay | -5/Zhirov | Free Exp. Heat Sink | -5/Zhirov | Free Exp. Optical Array | -5/Zhirov | Free Imp. Arc Thrower | -5/Zhirov | Free Exp. Utility Shielding | -3/Research | Hacked Exp. Propulsion Shielding | -3/Research | Hacked Com. Tesla Bomb Launcher | -3/Research | Scanalyzed Cld. Antigrav System | -3/Research | Scanalyzed Robot Schematics ------------------ S-27 Virus | -7/Data Miner | Free G-50 Soldier | -7/Data Miner | Free L-41 Fighter | -7/Data Miner | Free H-66 Slayer | -7/Data Miner | Free I-36 Angel | -7/Data Miner | Free Fabricated ------------ Cmb. Airjet | x2 | -7/Factory Cmb. Gravmag System | x2 | -6/Factory Hyp. Gauss Rifle | x2 | -6/Factory Cmb. Gravmag System | x2 | -5/Factory Powered Armor | x2 | -5/Factory Combat Drone Bay | x1 | -5/Factory Combat Drone Bay | x1 | -5/Factory Exp. Signal Interpreter | x1 | -4/Factory Alien Tech Used ----------------- Integrated Dissipator Transdimensional Reconstructor Achievements -------------- None Challenges ------------ None Game ------ Seed ImpulseSigixFacilitator Manual? 0 Play Time 04:40:03 Cumulative 908.3 hours Start 2020.08.30 @ 13:40:30 End 2020.09.04 @ 09:18:20 Sessions 15 Manual Loads 0 Difficulty Rogue Special Mode None Game No. 282 Rogue 282 Adventurer 0 Explorer 0 Win Type - Total 57 Types 41/1/4/5/4/1/1 Lore% 97 Gallery% 99 Achievement% 97 Wizard Run 0 Options --------- ASCII 0 Keyboard 1 Movement Numpad Keybinds 0 Fullscreen 1 Font 18/SmallcapsGlow Map View 76x50 Tactical HUD 1 Map Filters NONE Filters NONE Steam 1 RUN: e42c9257-5670-40dc-b7b5-0a29241e44d6